Cogmind - Beta 11.1 @@@ ROGUE MODE // 2022.10.11 @ 20:30:12 Player: deadnoob Result: Destroyed by as-78930 with Assembled Rifle Performance ------------- Evolutions (0) 0 Regions Visited (2) 400 Robots Destroyed (11) 55 Value Destroyed (163) 163 Prototype IDs (0) 0 Alien Tech Used (0) 0 Bonus (0) 0 TOTAL SCORE: 618 Bonus ------- None Cogmind --------- Core Integrity 0/250 Matter 220/300 Energy 87/100 System Corruption 2% Temperature Cool (0) Movement Core (50) Location -10/Mines Parts ------- > --- POWER (1) -------- (None) > --- PROPULSION (2) --- (None) > --- UTILITY (2) ------ (None) > --- WEAPON (2) ------- (None) > --- INVENTORY (5) ---- Ion Engine Medium Laser Grenade Launcher Grenade Launcher Datajack Peak State ------------ > --- POWER ------------ Light Ion Engine > --- PROPULSION ------- Light Treads Light Treads > --- UTILITY ---------- Small Storage Unit Large Storage Unit > --- WEAPON ----------- Medium Laser Grenade Launcher > --- INVENTORY -------- Ion Engine Light Treads EM Pulse Gun EM Pulse Gun Assault Rifle Grenade Launcher Grenade Launcher Datajack [Rating: 7] Favorites ----------- Power Light Ion Engine Engine Light Ion Engine Propulsion Light Treads Treads Light Treads Leg Aluminum Leg Wheel Compact Wheel Utility Small Storage Unit Storage Small Storage Unit Weapon Medium Laser Energy Gun Medium Laser Ballistic Gun Assault Rifle Launcher Grenade Launcher Build | -11 -10 -10 ------- Run | Scr Mat Min Slots Evolved . | . . . Power . | . . . Propulsion . | . . . Utility . | . . . Weapon . | . . . Parts Attached 13 | . 8 5 Power . | . . . Engine . | . . . Core . | . . . Reactor . | . . . Propulsion 4 | . 3 1 Treads 3 | . 2 1 Leg . | . . . Wheel 1 | . 1 . Hover . | . . . Flight . | . . . Utility 1 | . 1 . Device . | . . . Storage 1 | . 1 . Processor . | . . . Hackware . | . . . Protection . | . . . Artifact . | . . . Weapon 8 | . 4 4 Energy Gun 4 | . 1 3 Energy Cannon . | . . . Ballistic Gun 2 | . 2 . Ballistic Cannon . | . . . Launcher 2 | . 1 1 Special Weapon . | . . . Impact Weapon . | . . . Slashing Weapon . | . . . Piercing Weapon . | . . . Special Melee Weapon . | . . . Unidentified Prototypes . | . . . Parts Lost 8 | . . 8 Power 1 | . . 1 Propulsion 3 | . . 3 Utility . | . . . Weapon 4 | . . 4 Highest Loss Streak 8 | . . 8 To Critical Strikes . | . . . Average Slot Usage (%) 92 | . 90 93 Engine 12 | . 14 11 Treads 24 | . 24 25 Storage 25 | . 21 28 Energy Gun 13 | . 15 12 Ballistic Gun 11 | . 8 13 Launcher 2 | . 4 . Naked Turns 2 | . . 2 Heaviest Build 33 | 12 33 32 Greatest Support 40 | 20 40 40 Greatest Overweight (x) 8 | . . 8 Average Overweight (x) . | . . . Largest Inventory Capacity 15 | . 15 15 Average Capacity 13 | . 11 14 Most Carried 9 | . 8 9 Average Carried 8 | . 7 8 Final Capacity 15 | 8 15 5 Final Carried 8 | 6 8 5 Class Distribution -------------------- 100% | Mutant Dominant Class ---------------- Mutant | -10/Materials Mutant | -10/Mines Resources | -11 -10 -10 ----------- Run | Scr Mat Min Matter Collected 409 | 182 72 155 Remotely . | . . . Salvage Created 323 | . 135 188 Parts 20 | . 11 9 Haulers Intercepted . | . . . Recyclers Shooed . | . . . Parts Field Recycled . | . . . Retrieved Matter . | . . . Parts Self-Destructed . | . . . Prevented . | . . . Kills | -11 -10 -10 ------- Run | Scr Mat Min Combat Hostiles Destroyed 20 | . 3 17 Guns 7 | . . 7 AOE 13 | . 3 10 Classes Destroyed 6 | . 4 2 Worker 1 | . 1 . Builder 1 | . 1 . Recycler 1 | . 1 . Swarmer 6 | . 3 3 Grunt 2 | . . 2 Assembled 12 | . . 12 Best Kill Streak 12 | . 3 12 Combat Bots Only 12 | . 3 12 Max Kills in Single Turn 3 | . 2 3 Gunslinging . | . . . Exploded 3 | . 2 3 Melee . | . . . Uniques/NPCs Destroyed . | . . . Combat | -11 -10 -10 -------- Run | Scr Mat Min Damage Taken 1300 | . 106 1194 Core 263 | . . 263 Absorbed by Shields . | . . . Core Remaining (%) 100 | 100 . . Volleys Fired 44 | . 10 34 Largest 2 | . 2 2 Hottest 80 | . 70 80 Shots Fired 75 | . 16 59 Gun 66 | . 12 54 Cannon . | . . . Launcher 9 | . 4 5 Special . | . . . Kinetic 32 | . 6 26 Thermal 30 | . 6 24 Explosive 9 | . 4 5 Electromagnetic 4 | . . 4 Robot Hit Streak 10 | . 8 10 Robot Miss Streak 3 | . 1 3 Penetration Max . | . . . Secondary Targets 1 | . . 1 Max Gunslinging Chain 1 | . . 1 Shots Hit Robots 44 | . 8 36 Core Hits 46 | . 8 38 Critical Kills . | . . . Critical Parts Destroyed . | . . . Critical Strikes 3 | . 1 2 Burn 3 | . 1 2 Melee Attacks . | . . . Impact . | . . . Slashing . | . . . Piercing . | . . . Sneak Attacks . | . . . Combat Hostiles . | . . . Follow-up Attacks . | . . . Damage Inflicted 1352 | . 308 1044 Guns 594 | . 112 482 Cannons . | . . . Explosions 755 | . 196 559 Melee . | . . . Ramming 3 | . . 3 Kinetic 264 | . 37 227 Thermal 307 | . 75 232 Explosive 755 | . 196 559 Electromagnetic 23 | . . 23 Impact . | . . . Slashing . | . . . Piercing . | . . . Highest Corruption 2 | . . 2 Average Corruption 2 | . . 2 Corruption Purged . | . . . Corruption Blocked . | . . . Effects 3 | . . 3 Matter Fused 2 | . . 2 Energy Discharges 1 | . . 1 Overload Shots . | . . . Overflow Damage 15 | . 15 . Projectiles . | . . . Explosions 15 | . 15 . Melee . | . . . Knockbacks . | . . . Impact . | . . . Kinetic . | . . . Secondary . | . . . Self-Inflicted Damage 104 | . 4 100 Shots 5 | . 1 4 Rammed 1 | . . 1 Targets Rammed 1 | . . 1 Kicked . | . . . Crushed . | . . . Highest Temperature 150 | . 36 150 Average Temperature 41 | . 15 48 Received Heat Transfer 99 | . . 99 Siege Activations . | . . . Robots Corrupted . | . . . Combat Hostiles . | . . . Parts Fried . | . . . Impact Corruptions . | . . . Robots Melted . | . . . Combat Hostiles . | . . . Parts Melted . | . . . Heat Transferred 1110 | . 296 814 Parts Sabotaged . | . . . Parts Stolen . | . . . Parts Stripped . | . . . Power Chain Reactions . | . . . Missiles Intercepted . | . . . Alert | -11 -10 -10 ------- Run | Scr Mat Min Peak Influence 259 | . 202 259 Initial 78 | . . 78 Average 122 | . 108 131 Maximum Alert Level 1 | . 1 1 Low Security (%) 81 | . 89 76 Level 1 18 | . 10 23 Level 2 . | . . . Level 3 . | . . . Level 4 . | . . . Level 5 . | . . . High Security . | . . . Max Security . | . . . Squads Dispatched 1 | . 1 . Investigation 1 | . 1 . Extermination . | . . . Reinforcement . | . . . Assault . | . . . Garrison . | . . . Intercept . | . . . Searches Triggered . | . . . Construction Impeded . | . . . Haulers Reinforced . | . . . Active Scanning Responses . | . . . Cargo Convoy Interrupts . | . . . Stealth | -11 -10 -10 --------- Run | Scr Mat Min Distress Signals . | . . . Communications Jammed . | . . . Distress Signals . | . . . Times Spotted 26 | . 5 21 Peak Tracking Total 9 | . 3 9 Tactical Retreats 1 | . . 1 Traps | -11 -10 -10 ------- Run | Scr Mat Min Traps Triggered 1 | . 1 . Indirectly . | . . . Trap Hack Attempts . | . . . Triggered . | . . . Disarmed . | . . . Reprogrammed . | . . . Reused . | . . . Traps Extracted . | . . . Installed . | . . . Triggered . | . . . Machines | -11 -10 -10 ---------- Run | Scr Mat Min Machines Disabled 1 | . . 1 Max in Single Turn 1 | . . 1 Machines Sabotaged . | . . . Garrisons Compromised . | . . . Overloaded Fab Kills . | . . . Hacking | -11 -10 -10 --------- Run | Scr Mat Min Machines Accessed 3 | . 3 . Terminals 2 | . 2 . Fabricators . | . . . Repair Stations . | . . . Recycling Units 1 | . 1 . Scanalyzers . | . . . Garrison Access . | . . . Total Hacks 10 | . 10 . Successful 4 | . 4 . Failed 6 | . 6 . Catastrophic 1 | . 1 . Database Lockouts . | . . . Manual 9 | . 9 . Terminals 8 | . 8 . Fabricators . | . . . Repair Stations . | . . . Recycling Units 2 | . 2 . Scanalyzers . | . . . Garrison Access . | . . . Terminal Hacks 3 | . 3 . Record 1 | . 1 . Robot Analysis 2 | . 2 . Fabricator Hacks . | . . . Repair Station Hacks . | . . . Recycling Unit Hacks . | . . . Scanalyzer . | . . . Garrison Access Hacks . | . . . Unauthorized Hacks 1 | . 1 . Terminals . | . . . Fabricators . | . . . Repair Stations . | . . . Recycling Units 1 | . 1 . Tunnel 1 | . 1 . Scanalyzers . | . . . Garrison Access . | . . . Data Cores Recovered . | . . . Used . | . . . Hacking Detections 2 | . 2 . Full Trace Events 1 | . 1 . Feedback Events . | . . . Feedback Blocked . | . . . Robot Schematics Acquired . | . . . Robots Built . | . . . Authchips . | . . . Time . | . . . Total Robot Build Rating . | . . . Part Schematics Acquired . | . . . Parts Built . | . . . Authchips . | . . . Time . | . . . Total Part Build Rating . | . . . Parts Repaired . | . . . Time . | . . . Parts Recycled . | . . . Recycled Matter . | . . . Retrieved Matter . | . . . Retrieved Components . | . . . Parts Scanalyzed . | . . . Part Schematics Acquired . | . . . Parts Damaged . | . . . Bothacking | -11 -10 -10 ------------ Run | Scr Mat Min Used RIF Installer . | . . . Robots Hacked . | . . . Non-combat . | . . . Combat . | . . . Robot Hacks Applied . | . . . Relay Couplers Released . | . . . Fabnet Peak Effective % . | . . . Robots Rewired . | . . . Allies Hacked . | . . . Hacks Repelled . | . . . Allies | -11 -10 -10 -------- Run | Scr Mat Min Total Allies . | . . . Largest Group . | . . . Highest-Rated Group . | . . . Highest-Rated Ally . | . . . Total Orders . | . . . Ally Attacks . | . . . Total Damage . | . . . Kills . | . . . Allies Corrupted . | . . . Allies Melted . | . . . Intel | -11 -10 -10 ------- Run | Scr Mat Min Robot Analysis Total 2 | . 2 . Derelict Logs Recovered 1 | . . 1 Drone Launches . | . . . Drone Recoveries . | . . . Exploration | -11 -10 -10 ------------- Run | Scr Mat Min Turns Passed 557 | . 218 339 Spaces Moved 262 | 1 120 141 Core 7 | . . 7 Treads 222 | . 88 134 Legs 7 | 1 6 . Wheels 26 | . 26 . Hover . | . . . Flight . | . . . Fastest Speed 50 | 120 100 50 Average Speed 154 | 120 145 163 Slowest Speed 450 | 120 160 450 Overloaded Moves . | . . . Propulsion Burnouts . | . . . Robots Hopped . | . . . Cave-ins Triggered . | . . . Exploration Rate (%) 18 | 2 17 35 Regions Visited 2 Branch Regions 1 Pre-discovered Areas 2 | . 1 1 Known Exits Taken . | . . . Unknown Exits Taken 2 | 1 1 . Scrap Searched 1 | . . 1 Spaces Dug 33 | . . 33 Terrain Destroyed 54 | . 21 33 Melee . | . . . Projectile . | . . . AOE 54 | . 21 33 Terrain Rammed . | . . . Walls Destroyed . | . . . Machines Disabled . | . . . Actions | -11 -10 -10 --------- Run | Scr Mat Min Total 339 | . 149 190 Wait 6 | . . 6 Move 260 | . 119 141 Hop . | . . . Pick Up 6 | . 5 1 Fast Attach 2 | . 2 . Attach 5 | . 2 3 Detach 4 | . 3 1 Swap 6 | . 4 2 Drop 5 | . 4 1 Fire 44 | . 10 34 Melee . | . . . Ram . | . . . Kick . | . . . Crush 1 | . . 1 Escape Stasis . | . . . Rewire . | . . . Trap . | . . . Miscellaneous . | . . . Route ------- -11/Scrapyard -10/Materials -10/Mines History --------- Turn | Location | Event 1 | -11/Scrapyard | Discovered new exit (range 0) 1 | -11/Scrapyard | Entered Materials 126 | -10/Materials | Discovered new exit (range 5) 219 | -10/Materials | Entered Mines 234 | -10/Mines | Learned location of Zion (-6) 310 | -10/Mines | Build established: Mutant 484 | -10/Mines | Assembled infested the area 523 | -10/Mines | Core integrity fell below 50% 543 | -10/Mines | Destroyed 12 combat bots 543 | -10/Mines | Core integrity fell below 20% 558 | -10/Mines | Destroyed by as-78930 with Assembled Rifle Last Messages --------------- 00506_ as-87807 destroyed. 00506_ as-03813 destroyed. 00506_ as-60144 destroyed. 00507_ Lgt. Treads destroyed. 00507_ System corrupted by crushing effect (+2). 00510_ System corrupted: Energy discharge (-14). 00513_ as-51025 destroyed. 00522_ as-53967 suffers critical hit (Burn). 00522_ as-80761 destroyed. 00524_ The unstable cave ceiling collapses. 00527_ Med. Laser destroyed. 00532_ System corrupted: Matter fused (-7). 00532_ Assault Rifle destroyed. 00532_ Lgt. Treads destroyed. 00535_ EM Pulse Gun destroyed. 00541_ Acquired 9 matter. 00546_ The unstable cave ceiling collapses. 00552_ System corrupted: Matter fused (-8). 00556_ Dropped Sml. Storage Unit. 00557_ Acquired 10 matter. Map ----- +----------------------------------------------------+ | ???# ##?# ## ##? | | ???# #####??## ##?? | | ???##### #??????## ##??? | | ???????# #???????# ##??? | | ???????# #???????# #??? | | ???????# ##??????## #??? | | ???????## #??????## ##??? | | ????????### #?????# ###???? | | ??????????## #????# ##?????? | | ???????????# #????## ##??????? | | ???????????? #?????# #???????? | | ???????????? #?????# ########? | | ???????????? #?????# # #? | | ???????????? #??#### # """ #? | | ???????????? ##??# # """ #? | | ????????????###???# ## ## """ #? | | ???????????????##?#??# ## #? | | ??????????????# ????# ## #? | | ??????????????# ????# ## #? | | ????????####### ????# ## #? | | ????????? ??### ##### ###? | | ?????????? ?## ##?# #??? | | ?????????? #?# #?#%#??? | | ??????????? #?# #?# #??? | | ????????????# #### ### #??? | | ?????????????# #?####% @= #??? | | ?????????????# ###### #####??? | | ?????????????# # #=* #????? | | ????????????## % ]! #????? | | ????????????# k [!a!" #????? | | ???????????## a "" #????? | | ???????????# % #????? | | ??????????# # #####????? | | ??????? k #????????? | | ????# %% # ##????????? | | ????# # #####?????????? | | ????# ?# # != ??????????????? | | ????## ??## ## !#??????????????? | | ?????##????#??# #??????????????? | | ??????????????# #??????????????? | | ??????????????# ??????????????? | | ?????????????? ??????????????? | | ?????????????? ??????????????? | | ??????????????# ?????????????? | | ??????????????? ?????????????? | | ??????????????? ?????????????? | | ????????????????????????????????? | | ????????????????????????????????? | | ????????????????????????????????? | | ????????????????????????????????? | +----------------------------------------------------+ Best States ------------- Heat Dissipation 25 Energy Generation 10 Energy Capacity 125 Matter Stores 300 Matter Capacity 300 Sight Range 16 Terrain Scan Density 10 Evasion (%) 40 Recoil Reduction 2 Item Schematics ----------------- None Robot Schematics ------------------ None Fabricated ------------ Nothing Alien Tech Used ----------------- None Achievements -------------- None Challenges ------------ None Game ------ Seed UtilityChromaticDiverter Manual? 0 Play Time 00:06:58 Cumulative 137.4 hours Start 2022.10.11 @ 20:25:26 End 2022.10.11 @ 20:30:12 Sessions 1 Manual Loads 0 Difficulty Rogue Special Mode None Game No. 165 Rogue 165 Adventurer 0 Explorer 0 Win Type - Total 1 Types 1/0/0/0/0/0/0/0/0 Lore% 73 Gallery% 73 Achievement% 57 Wizard Run 0 Options --------- ASCII 0 Keyboard 0 Movement Numpad Keybinds 0 Fullscreen 2 Font 18/SmallcapsGlow Map View 76x50 Tactical HUD 1 Map Filters NONE Filters NONE Steam 1 RUN: b16446a0-7a20-4d80-a4fd-acbbe36f7b42